{"text_format":"3","workbook":"xlsx","n_sheets":4,"sheets":["Välitavoitteet","Toteutussuunnitelma","Tietoja","Kaaviotiedot"],"not_rendered":{"charts":1,"defined_names":2},"read":"whole","date_system":"1900"}

{"sheet":"Välitavoitteet","index":0,"n_rows":27,"n_cols":5,"rows_kept":27}
["Luo toteutussuunnitelma antamalla tärkeät välitavoitteet ja toimenpiteet tähän laskentataulukkoon.\nTämän laskentataulukon otsikko on solussa C1. \nLöydät lisätietoja tämän laskentataulukon käytöstä, mukaan lukien ohjeita näytönlukuohjelmia varten, Tietoja-laskentataulukosta.\nSaat muita ohjeita siirtymällä alas sarakkeessa A.",null,"Välitavoitteet"]
["Taulukon otsikot ovat soluissa C2–E2.  Lajittele ja suodata avulla voit lajitella tai etsiä tietyt merkinnät.\nKirjoita solusta C3 alkavaan taulukkoon välitavoitteet sekä päivämäärät ja määritä sijainti välitavoitteen kaavioon sijoittamista varten.\nSarake B on piilotettu. Näistä tiedoista luodaan kaavio, kun vierityspalkin avulla siirrytään aikajanalla ajanjaksosta toiseen. Sarakkeen B avulla voidaan määrittää, mitkä välitavoitteet esitetään kaaviossa, kun vierityspalkkia käytetään. \nVaroitus: Jos sarakkeen B sisältöä muutetaan tai poistetaan, tähän työkirjaan rakennettujen kaaviotoimintojen eheys voi rikkoutua.","Nro","Sijainti","Päivämäärä","Välitavoite"]
["Kirjoita soluun C1 sijainti päivämäärä ja välitavoite kaaviossa näyttämistä varten. Kirjoita positiivinen luku väliltä 1–3, jos haluat välitavoitteen näkyvän aikajanan yläpuolella. Kirjoita negatiivinen luku väliltä -1–-3, jos haluat välitavoitteen näkyvän aikajanan alapuolella.\nKirjoita päivämäärä ja välitavoite tai toimenpide taulukon sarakkeisiin D ja E.\nToista tämä taulukon jokaisella uudella rivillä oikealla.\nMallitiedot ovat riveillä 3–26. Voit luoda oman toteutussuunnitelmasi muokkaamalla tai poistamalla mallisisältöä.\nLöydät seuraavan ohjeen jatkamalla soluun A27.",{"$f":"ROW($A1)","v":1},1,{"$f":"TODAY()","v":"2018-06-29"},"Aloitus"]
[null,{"$f":"ROW($A2)","v":2},-2,{"$f":"D3+10","v":"2018-07-09"},"Ongelman analyysi\ntoimenpide 1"]
[null,3,1,{"$f":"D4+20","v":"2018-07-29"},"Liiketoimintatapauksen kehittäminen\ntoimenpide 1\ntoimenpide 2"]
[null,4,-1,{"$f":"D5+30","v":"2018-08-28"},"Esityksen tarkistaminen"]
[null,5,{"v":-0.5,"d":"-1"},{"$f":"D6+40","v":"2018-10-07"},"Toteutuksen aloitus\ntoimenpide 1\ntoimenpide 2"]
[null,6,2,{"$f":"D7+50","v":"2018-11-26"},"Toteutuksen linjaus\ntoimenpide 1\ntoimenpide 2\ntoimenpide 3"]
[null,7,{"v":0.5,"d":"1"},{"$f":"D8+60","v":"2019-01-25"},"Sidosryhmien jäsenten tuen hankkiminen"]
[null,8,-1,{"$f":"D9+70","v":"2019-04-05"},"Resurssien valinta"]
[null,9,{"v":0.5,"d":"1"},{"$f":"D10+80","v":"2019-06-24"},"Tiimin luonti\ntoimenpide 1 "]
[null,10,-2,{"$f":"D11+90","v":"2019-09-22"},"Tiimin aloitus\ntoimenpide 1 \ntoimenpide 2\ntoimenpide 3\ntoimenpide 4"]
[null,11,3,{"$f":"D12+100","v":"2019-12-31"},"Tiedonkeruun aloitus"]
[null,12,-1,{"$f":"D13+90","v":"2020-03-30"},"Tietojen analysointi"]
[null,13,1,{"$f":"D14+80","v":"2020-06-18"},"Rakenne"]
[null,14,1,{"$f":"D15+70","v":"2020-08-27"},"Soveltuvuusselvitys"]
[null,15,-3,{"$f":"D16+60","v":"2020-10-26"},"Testaus ja analysointi"]
[null,16,-2,{"$f":"D17+50","v":"2020-12-15"},"Uudelleensuunnittelu"]
[null,17,2,{"$f":"D18+40","v":"2021-01-24"},"Uudelleenkehitys"]
[null,18,-1,{"$f":"D19+30","v":"2021-02-23"},"Testaus ja analysointi"]
[null,19,1,{"$f":"D20+20","v":"2021-03-15"},"Uudelleensuunnittelu"]
[null,20,-3,{"$f":"D21+10","v":"2021-03-25"},"Uudelleenkehitys"]
[null,21,2,{"$f":"D22+20","v":"2021-04-14"},"Lopullinen testaus"]
[null,22,1,{"$f":"D23+30","v":"2021-05-14"},"Beetatestaus"]
[null,23,-3,{"$f":"D24+40","v":"2021-06-23"},"Tarkista"]
[null,24,-2,{"$f":"D25+50","v":"2021-08-12"},"Julkaisu markkinointiin"]
["Jos haluat lisätä uuden rivin toteutussuunnitelman välitavoitetaulukkoon, lisää uusi rivi tämän rivin yläpuolelle.\nTässä laskentataulukossa ei ole enempää ohjeita.",null,"Jos haluat lisätä välitavoitteen, lisää uusi rivi tämän rivin yläpuolelle."]

{"sheet":"Toteutussuunnitelma","index":1,"n_rows":3,"n_cols":4,"rows_kept":3}
["Tässä laskentataulukossa on kaavio, joka esittää Välitavoitteet-laskentataulukossa olevia välitavoitteita. \nVuodet ovat soluissa B2, C2 ja D2, ja niihin on käytetty tyyliä Otsikko 3.\nKaaviossa näkyy kymmenen välitavoitetta kerrallaan. \nVoit siirtyä toteutussuunnitelmassa soluissa B4–D4 olevien vierityspalkkien avulla.\nAikajanan vuodet ovat soluissa B3–D3.\nTässä laskentataulukossa ei ole enempää ohjeita."]
[]
[null,{"$f":"Kaaviotiedot!B20","v":2018},{"$f":"Kaaviotiedot!B21","v":""},{"$f":"Kaaviotiedot!B22","v":2019}]

{"sheet":"Tietoja","index":2,"n_rows":5,"n_cols":1,"rows_kept":5}
["Tietoja tästä työkirjasta"]
["Ohjeet näytönlukuohjelmia varten"]
["Tässä työkirjassa on neljä laskentataulukkoa. \n\nVälitavoitteet\nToteutussuunnitelma\nTietoja\nKaaviotiedot (piilotettu)\n\nJokaisen laskentataulukon ohjeet ovat sarakkeessa A alkaen solusta A1. Ne on kirjoitettu piilotekstinä. Jokainen vaihe opastaa sinua kyseisen rivin tiedoissa. Jokainen seuraava vaihe jatkuu solussa A2, A3 jne., ellei nimenomaisesti muuta ole mainittu. Ohjetekstissä voi lukea esimerkiksi ”jatka soluun A6” seuraavaa vaihetta varten. \n\nPiilotekstiä ei tulosteta.\n\nVoit poistaa nämä ohjeet mistä tahansa laskentataulukosta poistamalla sarakkeen A.\n"]
["Tässä toteutussuunnitelmassa välitavoitteet ja toimenpiteet kirjataan asemien avulla. Asemien avulla voidaan lisätä välitavoitteen tai toimenpiteen painoarvoa. Voit muuttaa arvoja haluamasi painoarvon mukaan. Esimerkiksi välitavoitteella tai toimenpiteellä 3 voi olla enemmän painoarvoa kuin välitavoitteella tai toimenpiteellä 2. Voi ilmaista tämän kaaviossa määrittämällä välitavoitteelle tai toimenpiteelle 3 suuremman sijaintiarvon kuin välitavoitteelle tai toimenpiteelle 2.  \n"]
["Tämä on tämän laskentataulukon viimeinen ohje."]

{"sheet":"Kaaviotiedot","index":3,"n_rows":26,"n_cols":4,"rows_kept":26,"hidden":true}
["Dynaamisten kaavioiden luontiin käytettävät tiedot ovat tässä laskentataulukossa. Älä poista tätä laskentataulukkoa.\nTämän laskentataulukon poistaminen saattaa vahingoittaa työkirjan dynaamisia ominaisuuksia.","Älä poista tätä laskentataulukkoa."]
["Taulukon otsikko on solussa B2.","Dynaaminen kaaviosisältö"]
["Taulukon otsikot ovat soluissa B3–D3. \nTämä taulukko päivitetään automaattisesti Välitavoitteet-taulukkoon annetun sisällön perusteella.\nVaroitus: Tässä taulukossa olevan sisällön muokkaaminen tai poistaminen voi vahingoittaa Toteutussuunnitelma-laskentataulukon Toteutussuunnitelma-kaavion päivitysominaisuutta.\nLöydät seuraavan ohjeen jatkamalla soluun A15.","Päivämäärä","Tapahtumat","Sijainti"]
[null,{"$f":"IFERROR(IF(LEN(Välitavoitteet!D3)=0,\"\",INDEX(Toteutussuunnitelman_välitavoitteet[],Välitavoitteet!$B3+$B$17,3)),\"\")","v":"2018-06-29"},{"$f":"IFERROR(IF(LEN(Välitavoitteet!E3)=0,\"\",INDEX(Toteutussuunnitelman_välitavoitteet[],Välitavoitteet!$B3+$B$17,4)),\"\")","v":"Aloitus"},{"$f":"IFERROR(INDEX(Toteutussuunnitelman_välitavoitteet[],Välitavoitteet!$B3+$B$17,2),\"\")","v":1}]
[null,{"$f":"IFERROR(IF(LEN(Välitavoitteet!D4)=0,\"\",INDEX(Toteutussuunnitelman_välitavoitteet[],Välitavoitteet!$B4+$B$17,3)),\"\")","v":"2018-07-09"},{"$f":"IFERROR(IF(LEN(Välitavoitteet!E4)=0,\"\",INDEX(Toteutussuunnitelman_välitavoitteet[],Välitavoitteet!$B4+$B$17,4)),\"\")","v":"Ongelman analyysi\ntoimenpide 1"},{"$f":"IFERROR(INDEX(Toteutussuunnitelman_välitavoitteet[],Välitavoitteet!$B4+$B$17,2),\"\")","v":-2}]
[null,{"$f":"IFERROR(IF(LEN(Välitavoitteet!D5)=0,\"\",INDEX(Toteutussuunnitelman_välitavoitteet[],Välitavoitteet!$B5+$B$17,3)),\"\")","v":"2018-07-29"},{"$f":"IFERROR(IF(LEN(Välitavoitteet!E5)=0,\"\",INDEX(Toteutussuunnitelman_välitavoitteet[],Välitavoitteet!$B5+$B$17,4)),\"\")","v":"Liiketoimintatapauksen kehittäminen\ntoimenpide 1\ntoimenpide 2"},{"$f":"IFERROR(INDEX(Toteutussuunnitelman_välitavoitteet[],Välitavoitteet!$B5+$B$17,2),\"\")","v":1}]
[null,{"$f":"IFERROR(IF(LEN(Välitavoitteet!D6)=0,\"\",INDEX(Toteutussuunnitelman_välitavoitteet[],Välitavoitteet!$B6+$B$17,3)),\"\")","v":"2018-08-28"},{"$f":"IFERROR(IF(LEN(Välitavoitteet!E6)=0,\"\",INDEX(Toteutussuunnitelman_välitavoitteet[],Välitavoitteet!$B6+$B$17,4)),\"\")","v":"Esityksen tarkistaminen"},{"$f":"IFERROR(INDEX(Toteutussuunnitelman_välitavoitteet[],Välitavoitteet!$B6+$B$17,2),\"\")","v":-1}]
[null,{"$f":"IFERROR(IF(LEN(Välitavoitteet!D7)=0,\"\",INDEX(Toteutussuunnitelman_välitavoitteet[],Välitavoitteet!$B7+$B$17,3)),\"\")","v":"2018-10-07"},{"$f":"IFERROR(IF(LEN(Välitavoitteet!E7)=0,\"\",INDEX(Toteutussuunnitelman_välitavoitteet[],Välitavoitteet!$B7+$B$17,4)),\"\")","v":"Toteutuksen aloitus\ntoimenpide 1\ntoimenpide 2"},{"$f":"IFERROR(INDEX(Toteutussuunnitelman_välitavoitteet[],Välitavoitteet!$B7+$B$17,2),\"\")","v":-0.5}]
[null,{"$f":"IFERROR(IF(LEN(Välitavoitteet!D8)=0,\"\",INDEX(Toteutussuunnitelman_välitavoitteet[],Välitavoitteet!$B8+$B$17,3)),\"\")","v":"2018-11-26"},{"$f":"IFERROR(IF(LEN(Välitavoitteet!E8)=0,\"\",INDEX(Toteutussuunnitelman_välitavoitteet[],Välitavoitteet!$B8+$B$17,4)),\"\")","v":"Toteutuksen linjaus\ntoimenpide 1\ntoimenpide 2\ntoimenpide 3"},{"$f":"IFERROR(INDEX(Toteutussuunnitelman_välitavoitteet[],Välitavoitteet!$B8+$B$17,2),\"\")","v":2}]
[null,{"$f":"IFERROR(IF(LEN(Välitavoitteet!D9)=0,\"\",INDEX(Toteutussuunnitelman_välitavoitteet[],Välitavoitteet!$B9+$B$17,3)),\"\")","v":"2019-01-25"},{"$f":"IFERROR(IF(LEN(Välitavoitteet!E9)=0,\"\",INDEX(Toteutussuunnitelman_välitavoitteet[],Välitavoitteet!$B9+$B$17,4)),\"\")","v":"Sidosryhmien jäsenten tuen hankkiminen"},{"$f":"IFERROR(INDEX(Toteutussuunnitelman_välitavoitteet[],Välitavoitteet!$B9+$B$17,2),\"\")","v":0.5}]
[null,{"$f":"IFERROR(IF(LEN(Välitavoitteet!D10)=0,\"\",INDEX(Toteutussuunnitelman_välitavoitteet[],Välitavoitteet!$B10+$B$17,3)),\"\")","v":"2019-04-05"},{"$f":"IFERROR(IF(LEN(Välitavoitteet!E10)=0,\"\",INDEX(Toteutussuunnitelman_välitavoitteet[],Välitavoitteet!$B10+$B$17,4)),\"\")","v":"Resurssien valinta"},{"$f":"IFERROR(INDEX(Toteutussuunnitelman_välitavoitteet[],Välitavoitteet!$B10+$B$17,2),\"\")","v":-1}]
[null,{"$f":"IFERROR(IF(LEN(Välitavoitteet!D11)=0,\"\",INDEX(Toteutussuunnitelman_välitavoitteet[],Välitavoitteet!$B11+$B$17,3)),\"\")","v":"2019-06-24"},{"$f":"IFERROR(IF(LEN(Välitavoitteet!E11)=0,\"\",INDEX(Toteutussuunnitelman_välitavoitteet[],Välitavoitteet!$B11+$B$17,4)),\"\")","v":"Tiimin luonti\ntoimenpide 1 "},{"$f":"IFERROR(INDEX(Toteutussuunnitelman_välitavoitteet[],Välitavoitteet!$B11+$B$17,2),\"\")","v":0.5}]
[null,{"$f":"IFERROR(IF(LEN(Välitavoitteet!D12)=0,\"\",INDEX(Toteutussuunnitelman_välitavoitteet[],Välitavoitteet!$B12+$B$17,3)),\"\")","v":"2019-09-22"},{"$f":"IFERROR(IF(LEN(Välitavoitteet!E12)=0,\"\",INDEX(Toteutussuunnitelman_välitavoitteet[],Välitavoitteet!$B12+$B$17,4)),\"\")","v":"Tiimin aloitus\ntoimenpide 1 \ntoimenpide 2\ntoimenpide 3\ntoimenpide 4"},{"$f":"IFERROR(INDEX(Toteutussuunnitelman_välitavoitteet[],Välitavoitteet!$B12+$B$17,2),\"\")","v":-2}]
[]
["Toteutussuunnitelman vierittäminen toteutetaan lisäävän arvon avulla. Tämän toiminnon otsikko on solussa B15.\nTaulukko, jossa on otsikko ja yksi arvo, on soluissa B16 ja B17.\nLöydät seuraavan ohjeen jatkamalla soluun A19.","Vieritettävyys"]
[null,"Rivin lisäys"]
[null,0]
[]
["Toteutussuunnitelma-kaaviossa näkyvät aikajanan vuodet. Tämä edellyttää, että vuodet saadaan välitavoiteluettelosta. \nTämän osan otsikko on ”Vuosi” solussa B19. \nVuosiarvot luodaan automaattisesti soluihin C20–C22.\nVaroitus: Näiden vuosien poistaminen tai muokkaaminen voi muuttaa Toteutussuunnitelma-kaavion tarkkuutta.\nLöydät seuraavan ohjeen jatkamalla soluun A24.","Vuosi"]
[null,{"$f":"IFERROR(YEAR(B4),\"\")","v":2018},"<-- toteutussuunnitelman aloitussijainnin vuosi"]
[null,{"$f":"IFERROR(IF(YEAR($B$9)=$B$20,\"\",YEAR($B$9)),\"\")","v":""},"< – toteutussuunnitelman keskijakson vuosi; huomaa, että se voi olla tyhjä, jos kyse on samasta vuodesta kuin toteutussuunnitelman aloitussijainti"]
[null,{"$f":"IFERROR(IF(YEAR($B$13)=$B$20,\"\",YEAR($B$13)),\"\")","v":2019},"<-- toteutussuunnitelman lopetussijainnin vuosi; huomaa, että se voi olla tyhjä, jos kyse on samasta vuodesta kuin toteutussuunnitelman aloitussijainti"]
[]
["Toteutussuunnitelma-kaavion rengasmerkinnöissä olevat päivämäärät saadaan tämän laskentataulukon dynaamisesta kaaviosisällöstä. Ensimmäinen päivämäärä on solussa C24, keskimmäinen päivämäärä on solussa C25 ja viimeinen päivämäärä on solussa C26.\nTässä laskentataulukossa ei ole enempää ohjeita.","Ensimmäinen päivämäärä",{"$f":"B4","v":"2018-06-29"}]
[null,"Keskimmäinen päivämäärä",{"$f":"B9","v":"2018-11-26"}]
[null,"Viimeinen päivämäärä",{"$f":"B13","v":"2019-09-22"}]